fUSD/lending_fUSD_20250616
["ID","MTS","AMOUNT","RATE_DAILY","PERIOD"]
[366128762,1750077072424,-150.0,0.00016865,2]
[366128763,1750077072434,-151.0,0.00016865,2]
[366128764,1750077072444,-563.17877796,0.00016866,2]
[366128765,1750077072454,-150.0,0.00016868,2]
[366128766,1750077072463,-150.0,0.00016872,2]
[366128767,1750077072474,-150.0,0.00016874,2]
[366128768,1750077072484,-150.0,0.00016876,2]
[366128769,1750077072494,-200.0,0.00016877,2]
[366128770,1750077072505,-150.0,0.00016879,2]
[366128771,1750077072515,-150.0,0.0001688,2]
[366128772,1750077072524,-200.0,0.00016884,2]
[366128773,1750077072534,-150.0,0.00016884,2]
[366128774,1750077072549,-150.0,0.00016885,2]
[366128775,1750077072565,-150.0,0.00016886,2]
[366128776,1750077072574,-150.0,0.00016887,2]
[366128777,1750077072584,-150.0,0.00016887,2]
[366128778,1750077072593,-150.0,0.00016889,2]
[366128779,1750077072604,-150.0,0.00016892,2]
[366128780,1750077072614,-150.0,0.00016894,2]
[366128781,1750077072624,-200.0,0.00016895,2]
[366128782,1750077072634,-150.0,0.00016896,2]
[366128783,1750077072644,-150.0,0.00016897,2]
[366128784,1750077072654,-150.0,0.00016898,2]
[366128785,1750077072666,-4815.72823704,0.00016899,2]
[366128786,1750077072676,-200.0,0.00016899,2]
[366128787,1750077072685,-2000.0,0.000169,2]
[366128788,1750077072695,-2000.0,0.000169,2]
[366128789,1750077072706,-2000.0,0.000169,2]
[366128790,1750077072716,-2000.0,0.000169,2]
[366128791,1750077072726,-2000.0,0.000169,2]
[366128792,1750077072735,-151.0,0.000169,2]
[366128793,1750077072746,-151.0,0.000169,2]
[366128794,1750077072756,-151.0,0.000169,2]
[366128795,1750077072766,-151.0,0.000169,2]
[366128796,1750077072776,-690.022743,0.000169,2]
[366128797,1750077072786,-690.022743,0.000169,2]
[366128798,1750077072796,-955.407299,0.000169,2]
[366128799,1750077072806,-955.407299,0.000169,2]
[366128800,1750077072816,-162.74938912,0.000169,2]
[366128801,1750077072825,-518.68661,0.000169,2]
[366128802,1750077072835,-518.68661,0.000169,2]
[366128803,1750077072844,-888.596646,0.000169,2]
[366128804,1750077072854,-888.596646,0.000169,2]
[366128805,1750077072864,-651.536351,0.000169,2]
[366128806,1750077072874,-651.536351,0.000169,2]
[366128807,1750077072883,-151.0,0.000169,2]
[366128808,1750077072893,-153.28367159,0.000169,2]
[366128809,1750077072904,-1821.6497183,0.000169,2]
[366128810,1750077072914,-190.17373055,0.000169,2]
[366128811,1750077072924,-563.17877796,0.000169,2]
[366128812,1750077072934,-170.13564688,0.000169,2]
[366128813,1750077072944,-150.0,0.00016909,2]
[366128814,1750077072954,-150.0,0.00016916,2]
[366128815,1750077072965,-150.0,0.00016917,2]
[366128816,1750077072974,-151.0,0.00016922,2]
[366128817,1750077072984,-151.0,0.00016922,2]
[366128818,1750077072994,-151.0,0.00016922,2]
[366128819,1750077073004,-151.0,0.00016922,2]
[366128820,1750077073014,-284.184316,0.00016922,2]
[366128821,1750077073024,-151.0,0.00016922,2]
[366128822,1750077073034,-253.101498,0.00016922,2]
[366128823,1750077073044,-253.101498,0.00016922,2]
[366128824,1750077073054,-151.0,0.00016922,2]
[366128825,1750077073063,-151.0,0.00016922,2]
[366128826,1750077073073,-151.0,0.00016922,2]
[366128827,1750077073082,-151.0,0.00016922,2]
[366128828,1750077073092,-151.0,0.00016922,2]
[366128829,1750077073102,-229.232706,0.00016922,2]
[366128830,1750077073112,-151.0,0.00016922,2]
[366128831,1750077073123,-193.624345,0.00016922,2]
[366128832,1750077073132,-193.624345,0.00016922,2]
[366128833,1750077073142,-1727.863496,0.00016922,2]
[366128834,1750077073151,-231.466191,0.00016922,2]
[366128835,1750077073161,-1727.863496,0.00016922,2]
[366128836,1750077073171,-231.466191,0.00016922,2]
[366128837,1750077073181,-317.20892,0.00016922,2]
[366128838,1750077073191,-317.20892,0.00016922,2]
[366128839,1750077073200,-151.0,0.00016922,2]
[366128840,1750077073210,-151.0,0.00016922,2]
[366128841,1750077073220,-300.334588,0.00016922,2]
[366128842,1750077073231,-501.248759,0.00016922,2]
[366128843,1750077073240,-501.248759,0.00016922,2]
[366128844,1750077073250,-151.0,0.00016922,2]
[366128845,1750077073263,-151.0,0.00016922,2]
[366128846,1750077073273,-272.647939,0.00016922,2]
[366128847,1750077073283,-272.647939,0.00016922,2]
[366128848,1750077073292,-367.238878,0.00016922,2]
[366128849,1750077073301,-338.0,0.00016922,2]
[366128850,1750077073313,-151.0,0.00016923,2]
[366128851,1750077073323,-151.0,0.00016923,2]
[366128852,1750077073333,-151.0,0.00016923,2]
[366128853,1750077073342,-151.0,0.00016923,2]
[366128854,1750077073353,-1866.73,0.00016923,2]
[366128855,1750077073362,-1004.51,0.00016923,2]
[366128856,1750077073373,-151.0,0.00016923,2]
[366128857,1750077073383,-151.0,0.00016923,2]
[366128858,1750077073393,-205.426801,0.00016923,2]
[366128859,1750077073404,-5807.43,0.00016923,2]
[366128860,1750077073414,-151.0,0.00016923,2]
[366128861,1750077073425,-2669.31,0.00016923,2]
[366128862,1750077073435,-205.426801,0.00016923,2]
[366128863,1750077073444,-1295.75,0.00016923,2]
[366128864,1750077073454,-400.71897,0.00016923,2]
[366128865,1750077073463,-400.71897,0.00016923,2]
[366128866,1750077073473,-790.86,0.00016923,2]
[366128867,1750077073483,-490.0,0.00016923,2]
[366128868,1750077073492,-10398.81058423,0.00016923,2]
[366128869,1750077074147,-392.341,0.00016602,2]
[366128870,1750077074787,-263.28316487,0.00016438,2]
[366128871,1750077074804,-350.98683513,0.00016438,2]
[366128872,1750077074815,-2440.729,0.00016602,2]
[366128873,1750077074825,-151.0,0.00016602,2]
[366128874,1750077074836,-614.27,0.00016602,2]
[366128875,1750077074846,-151.0,0.00016612,2]
[366128876,1750077074858,-2833.07,0.00016767,2]
[366128877,1750077074868,-151.0,0.00016767,2]
[366128878,1750077074878,-6128.97941577,0.00016923,2]
[366128879,1750077074888,-5321.7412058,0.00016923,2]
[366128880,1750077074898,-3815.9,0.00016923,2]
[366128881,1750077074907,-1230.86,0.00016923,2]
[366128882,1750077074917,-1718.66,0.00016923,2]
[366128883,1750077074927,-2915.5,0.00016923,2]
[366128884,1750077074937,-2049.72,0.00016923,2]
[366128885,1750077074948,-1876.9,0.00016923,2]
[366128886,1750077074959,-1154.8,0.00016923,2]
[366128887,1750077074969,-4014.94,0.00016923,2]
[366128888,1750077074979,-300.0,0.0001693,2]
[366128889,1750077074989,-151.0,0.00016931,2]
[366128890,1750077074998,-273.413564,0.00016931,2]
[366128891,1750077075008,-151.0,0.00016931,2]
[366128892,1750077075018,-151.0,0.00016931,2]
[366128893,1750077075027,-151.0,0.00016931,2]
[366128894,1750077075036,-151.0,0.00016931,2]
[366128895,1750077075046,-151.0,0.00016931,2]
[366128896,1750077075058,-151.0,0.00016931,2]
[366128897,1750077075068,-151.0,0.00016931,2]
[366128898,1750077075077,-151.0,0.00016931,2]
[366128899,1750077075087,-161.306628,0.00016931,2]
[366128900,1750077075097,-222.037601,0.00016931,2]
[366128901,1750077075106,-222.037601,0.00016931,2]
[366128902,1750077075116,-151.0,0.00016931,2]
[366128903,1750077075131,-151.0,0.00016931,2]
[366128904,1750077075141,-201.320719,0.00016931,2]
[366128905,1750077075151,-1000.0,0.00016931,2]
[366128906,1750077075160,-812.70884412,0.00016931,2]
[366128907,1750077075170,-151.0,0.00016931,2]
[366128908,1750077075180,-151.0,0.00016931,2]
[366128909,1750077075191,-253.101498,0.00016931,2]
[366128910,1750077075201,-151.0,0.00016931,2]
[366128911,1750077075211,-151.0,0.00016931,2]
[366128912,1750077075221,-253.101498,0.00016931,2]
[366128913,1750077075231,-273.505948,0.00016931,2]
[366128914,1750077075240,-151.0,0.00016931,2]
[366128915,1750077075249,-151.0,0.00016931,2]
[366128916,1750077075259,-151.0,0.00016931,2]
[366128917,1750077075269,-151.0,0.00016931,2]
[366128918,1750077075278,-151.0,0.00016931,2]
[366128919,1750077075288,-151.0,0.00016931,2]
[366128920,1750077075298,-151.0,0.00016931,2]
[366128921,1750077075308,-198.810832,0.00016931,2]
[366128922,1750077075318,-198.810832,0.00016931,2]
[366128923,1750077075329,-198.810832,0.00016931,2]
[366128924,1750077075339,-198.810832,0.00016931,2]
[366128925,1750077075349,-195.129635,0.00016931,2]
[366128926,1750077075359,-195.129635,0.00016931,2]
[366128927,1750077075369,-195.129635,0.00016931,2]
[366128928,1750077075379,-195.129635,0.00016931,2]
[366128929,1750077075388,-219.046719,0.00016931,2]
[366128930,1750077075398,-151.0,0.00016931,2]
[366128931,1750077075407,-151.0,0.00016931,2]
[366128932,1750077075417,-151.0,0.00016931,2]
[366128933,1750077075427,-151.0,0.00016931,2]
[366128934,1750077075436,-151.0,0.00016931,2]
[366128935,1750077075445,-151.0,0.00016931,2]
[366128936,1750077075455,-151.0,0.00016931,2]
[366128937,1750077075464,-151.0,0.00016931,2]
[366128938,1750077075474,-151.0,0.00016931,2]
[366128939,1750077075484,-151.0,0.00016931,2]
[366128940,1750077075493,-754.44998,0.00016931,2]
[366128941,1750077075503,-754.44998,0.00016931,2]
[366128942,1750077075512,-754.44998,0.00016931,2]
[366128943,1750077075522,-754.44998,0.00016931,2]
[366128944,1750077075940,-589.454762,0.00016931,2]
[366128945,1750077076012,-589.454762,0.00016931,2]
[366128946,1750077076025,-589.454762,0.00016931,2]
[366128947,1750077076035,-589.454762,0.00016931,2]
[366128948,1750077076046,-323.556172,0.00016931,2]
[366128949,1750077076057,-323.556172,0.00016931,2]
[366128950,1750077076067,-222.307538,0.00016931,2]
[366128951,1750077076077,-222.307538,0.00016931,2]
[366128952,1750077076087,-323.556172,0.00016931,2]
[366128953,1750077076098,-323.556172,0.00016931,2]
[366128954,1750077076108,-222.307538,0.00016931,2]
[366128955,1750077076119,-222.307538,0.00016931,2]
[366128956,1750077076129,-216.938169,0.00016931,2]
[366128957,1750077076139,-216.938169,0.00016931,2]
[366128958,1750077076149,-216.938169,0.00016931,2]
[366128959,1750077076159,-216.938169,0.00016931,2]
[366128960,1750077076169,-151.0,0.00016931,2]
[366128961,1750077076179,-164.005836,0.00016931,2]
[366128962,1750077076189,-151.0,0.00016931,2]
[366128963,1750077076199,-151.0,0.00016931,2]
[366128964,1750077076210,-160.114818,0.00016931,2]
[366128965,1750077076220,-160.114818,0.00016931,2]
[366128966,1750077076230,-151.0,0.00016931,2]
[366128967,1750077076240,-151.0,0.00016931,2]
[366128968,1750077076250,-160.114818,0.00016931,2]
[366128969,1750077076261,-151.0,0.00016931,2]
[366128970,1750077076272,-160.114818,0.00016931,2]
[366128971,1750077076282,-151.0,0.00016931,2]
[366128972,1750077076292,-151.0,0.00016931,2]
[366128973,1750077076310,-253.727265,0.00016931,2]
[366128974,1750077076322,-253.727265,0.00016931,2]
[366128975,1750077076333,-253.727265,0.00016931,2]
[366128976,1750077076344,-253.727265,0.00016931,2]
[366128977,1750077076355,-151.0,0.00016931,2]
[366128978,1750077076365,-193.624345,0.00016931,2]
[366128979,1750077076376,-193.624345,0.00016931,2]
[366128980,1750077076387,-151.0,0.00016931,2]
[366128981,1750077076397,-151.0,0.00016931,2]
[366128982,1750077076408,-1727.863496,0.00016931,2]
[366128983,1750077076419,-231.466191,0.00016931,2]
[366128984,1750077076430,-1727.863496,0.00016931,2]
[366128985,1750077076441,-231.466191,0.00016931,2]
[366128986,1750077076451,-317.20892,0.00016931,2]
[366128987,1750077076461,-317.20892,0.00016931,2]
[366128988,1750077076472,-151.0,0.00016931,2]
[366128989,1750077076482,-667.05,0.00016931,2]
[366128990,1750077076493,-151.0,0.00016931,2]
[366128991,1750077076504,-151.0,0.00016931,2]
[366128992,1750077076516,-151.0,0.00016931,2]
[366128993,1750077076526,-490.0,0.00016931,2]
[366128994,1750077076536,-490.0,0.00016931,2]
[366128995,1750077076547,-501.248759,0.00016931,2]
[366128996,1750077076558,-501.248759,0.00016931,2]
[366128997,1750077076568,-585.81,0.00016931,2]
[366128998,1750077076579,-490.0,0.00016931,2]
[366128999,1750077076589,-490.0,0.00016931,2]
[366129000,1750077076599,-264.61577739,0.00016931,2]
[366129001,1750077076610,-151.0,0.00016931,2]
[366129002,1750077076620,-213.696789,0.00016931,2]
[366129003,1750077076631,-490.0,0.00016931,2]
[366129004,1750077076641,-213.696789,0.00016931,2]
[366129005,1750077076652,-490.0,0.00016931,2]
[366129006,1750077076663,-490.0,0.00016931,2]
[366129007,1750077076676,-151.0,0.00016931,2]
[366129008,1750077076686,-213.696789,0.00016931,2]
[366129009,1750077076697,-490.0,0.00016931,2]
[366129010,1750077076708,-213.696789,0.00016931,2]
[366129011,1750077076722,-490.0,0.00016931,2]
[366129012,1750077076732,-490.0,0.00016931,2]
[366129013,1750077076749,-490.0,0.00016931,2]
[366129014,1750077076760,-490.0,0.00016931,2]
[366129015,1750077076771,-501.64,0.00016931,2]
[366129016,1750077076781,-507.23,0.00016931,2]
[366129017,1750077076791,-490.0,0.00016931,2]
[366129018,1750077076801,-600.23,0.00016931,2]
[366129019,1750077076812,-490.0,0.00016931,2]
[366129020,1750077076823,-490.0,0.00016931,2]
[366129021,1750077076833,-538.58,0.00016931,2]
[366129022,1750077076844,-272.647939,0.00016931,2]
[366129023,1750077076854,-490.0,0.00016931,2]
[366129024,1750077076865,-151.0,0.00016931,2]
[366129025,1750077076876,-1213.69,0.00016931,2]
[366129026,1750077076886,-151.0,0.00016931,2]
[366129027,1750077076897,-490.0,0.00016931,2]
[366129028,1750077076908,-490.0,0.00016931,2]
[366129029,1750077076919,-272.647939,0.00016931,2]
[366129030,1750077076929,-250.0,0.00016931,2]
[366129031,1750077076939,-831.801902,0.00016931,2]
[366129032,1750077076950,-831.801902,0.00016931,2]
[366129033,1750077076960,-151.0,0.00016931,2]
[366129034,1750077076973,-151.0,0.00016931,2]
[366129035,1750077076983,-490.0,0.00016931,2]
[366129036,1750077076993,-831.801902,0.00016931,2]
[366129037,1750077077002,-831.801902,0.00016931,2]
[366129038,1750077077013,-490.0,0.00016931,2]
[366129039,1750077077023,-490.0,0.00016931,2]
[366129040,1750077077034,-490.0,0.00016931,2]
[366129041,1750077077044,-646.48,0.00016931,2]
[366129042,1750077077054,-490.0,0.00016931,2]
[366129043,1750077077064,-490.0,0.00016931,2]
[366129044,1750077077075,-490.0,0.00016931,2]
[366129045,1750077077085,-290.81193275,0.00016931,2]
[366129046,1750077077095,-535.01,0.00016931,2]
[366129047,1750077077106,-490.0,0.00016931,2]
[366129048,1750077077116,-151.0,0.00016931,2]
[366129049,1750077077127,-151.0,0.00016931,2]
[366129050,1750077077138,-490.0,0.00016931,2]
[366129051,1750077077148,-151.0,0.00016931,2]
[366129052,1750077077160,-151.0,0.00016931,2]
[366129053,1750077077170,-151.0,0.00016931,2]
[366129054,1750077077186,-151.0,0.00016931,2]
[366129055,1750077077197,-490.0,0.00016931,2]
[366129056,1750077077207,-490.0,0.00016931,2]
[366129057,1750077077218,-538.27,0.00016931,2]
[366129058,1750077077228,-151.0,0.00016931,2]
[366129059,1750077077238,-158.291031,0.00016931,2]
[366129060,1750077077249,-490.0,0.00016931,2]
[366129061,1750077077259,-592.5,0.00016931,2]
[366129062,1750077077270,-541.58,0.00016931,2]
[366129063,1750077077280,-168.481778,0.00016931,2]
[366129064,1750077077291,-151.0,0.00016931,2]
[366129065,1750077077301,-550.7,0.00016931,2]
[366129066,1750077077312,-490.0,0.00016931,2]
[366129067,1750077077321,-490.0,0.00016931,2]
[366129068,1750077077332,-490.0,0.00016931,2]
[366129069,1750077077342,-490.0,0.00016931,2]
[366129070,1750077077351,-490.0,0.00016931,2]
[366129071,1750077077362,-184.051259,0.00016931,2]
[366129072,1750077077372,-184.051259,0.00016931,2]
[366129073,1750077077389,-184.051259,0.00016931,2]
[366129074,1750077077399,-184.051259,0.00016931,2]
[366129075,1750077077411,-490.0,0.00016931,2]
[366129076,1750077077423,-490.0,0.00016931,2]
[366129077,1750077077435,-490.0,0.00016931,2]
[366129078,1750077077446,-490.0,0.00016931,2]
[366129079,1750077077456,-612.11,0.00016931,2]
[366129080,1750077077468,-490.0,0.00016931,2]
[366129081,1750077077478,-490.0,0.00016931,2]
[366129082,1750077077488,-151.0,0.00016931,2]
[366129083,1750077077498,-151.0,0.00016931,2]
[366129084,1750077077511,-367.238878,0.00016931,2]
[366129085,1750077077521,-490.0,0.00016931,2]
[366129086,1750077077532,-503.93,0.00016931,2]
[366129087,1750077077542,-490.0,0.00016931,2]
[366129088,1750077077553,-492.54,0.00016931,2]
[366129089,1750077077565,-490.0,0.00016931,2]
[366129090,1750077077576,-490.0,0.00016931,2]
[366129091,1750077077586,-490.0,0.00016931,2]
[366129092,1750077077596,-490.0,0.00016931,2]
[366129093,1750077077609,-151.0,0.00016931,2]
[366129094,1750077077620,-490.0,0.00016931,2]
[366129095,1750077077630,-490.0,0.00016931,2]
[366129096,1750077077642,-490.0,0.00016931,2]
[366129097,1750077077652,-490.0,0.00016931,2]
[366129098,1750077077665,-895.36,0.00016931,2]
[366129099,1750077077677,-490.0,0.00016931,2]
[366129100,1750077077687,-490.0,0.00016931,2]
[366129101,1750077077698,-780.24,0.00016931,2]
[366129102,1750077077709,-1016.69,0.00016931,2]
[366129103,1750077077719,-295.93898937,0.00016931,2]
[366129104,1750077077730,-490.0,0.00016931,2]
[366129105,1750077077740,-490.0,0.00016931,2]
[366129106,1750077077750,-490.0,0.00016931,2]
[366129107,1750077077761,-542.76,0.00016931,2]
[366129108,1750077077772,-490.0,0.00016931,2]
[366129109,1750077077782,-502.38,0.00016931,2]
[366129110,1750077077793,-490.0,0.00016931,2]
[366129111,1750077077803,-490.0,0.00016931,2]
[366129112,1750077077814,-530.26,0.00016931,2]
[366129113,1750077077824,-490.0,0.00016931,2]
[366129114,1750077077836,-490.0,0.00016931,2]
[366129115,1750077077846,-517.65,0.00016931,2]
[366129116,1750077077856,-151.0,0.00016931,2]
[366129117,1750077077867,-563.09,0.00016931,2]
[366129118,1750077077877,-511.32,0.00016931,2]
[366129119,1750077077887,-490.0,0.00016931,2]
[366129120,1750077077896,-581.5,0.00016931,2]
[366129121,1750077077908,-490.0,0.00016931,2]
[366129122,1750077077918,-690.022743,0.00016931,2]
[366129123,1750077077928,-543.74,0.00016931,2]
[366129124,1750077077938,-1103.62,0.00016931,2]
[366129125,1750077077947,-690.022743,0.00016931,2]
[366129126,1750077077957,-490.0,0.00016931,2]
[366129127,1750077077967,-490.0,0.00016931,2]
[366129128,1750077077977,-663.4,0.00016931,2]
[366129129,1750077077987,-383.036141,0.00016931,2]
[366129130,1750077077997,-383.036141,0.00016931,2]
[366129131,1750077078009,-490.0,0.00016931,2]
[366129132,1750077078018,-383.036141,0.00016931,2]
[366129133,1750077078028,-383.036141,0.00016931,2]
[366129134,1750077078039,-995.29,0.00016931,2]
[366129135,1750077078049,-490.0,0.00016931,2]
[366129136,1750077078059,-490.0,0.00016931,2]
[366129137,1750077078070,-617.36968848,0.00016931,2]
[366129138,1750077078081,-522.86,0.00016931,2]
[366129139,1750077078091,-490.0,0.00016931,2]
[366129140,1750077078102,-490.0,0.00016931,2]
[366129141,1750077078112,-1180.54,0.00016931,2]
[366129142,1750077078122,-490.0,0.00016931,2]
[366129143,1750077078133,-490.0,0.00016931,2]
[366129144,1750077078143,-954.97,0.00016931,2]
[366129145,1750077078153,-1046.55,0.00016931,2]
[366129146,1750077078163,-490.0,0.00016931,2]
[366129147,1750077078173,-490.0,0.00016931,2]
[366129148,1750077078184,-490.0,0.00016931,2]
[366129149,1750077078195,-490.0,0.00016931,2]
[366129150,1750077078205,-576.54,0.00016931,2]
[366129151,1750077078215,-150.0,0.00016931,2]
[366129152,1750077078226,-490.0,0.00016931,2]
[366129153,1750077078236,-1118.09,0.00016931,2]
[366129154,1750077078247,-490.0,0.00016931,2]
[366129155,1750077078258,-585.24,0.00016931,2]
[366129156,1750077078268,-334.67727029,0.00016931,2]
[366129157,1750077078278,-490.0,0.00016931,2]
[366129158,1750077078289,-723.1,0.00016931,2]
[366129159,1750077078299,-490.0,0.00016931,2]
[366129160,1750077078310,-590.28516341,0.00016931,2]
[366129161,1750077078321,-490.0,0.00016931,2]
[366129162,1750077078331,-904.15,0.00016931,2]
[366129163,1750077078342,-584.41,0.00016931,2]
[366129164,1750077078352,-983.79,0.00016931,2]
[366129165,1750077078363,-490.0,0.00016931,2]
[366129166,1750077078374,-490.0,0.00016931,2]
[366129167,1750077078384,-494.56,0.00016931,2]
[366129168,1750077078395,-490.0,0.00016931,2]
[366129169,1750077078406,-490.0,0.00016931,2]
[366129170,1750077078416,-490.0,0.00016931,2]
[366129171,1750077078426,-1035.12,0.00016931,2]
[366129172,1750077078437,-828.27,0.00016931,2]
[366129173,1750077078447,-542.5,0.00016931,2]
[366129174,1750077078458,-557.52,0.00016931,2]
[366129175,1750077078468,-490.0,0.00016931,2]
[366129176,1750077078479,-555.47327732,0.00016931,2]
[366129177,1750077078489,-490.0,0.00016931,2]
[366129178,1750077078500,-678.43,0.00016931,2]
[366129179,1750077078510,-202.95539089,0.00016931,2]
[366129180,1750077078521,-150.0,0.00016931,2]
[366129181,1750077078531,-1225.76,0.00016931,2]
[366129182,1750077078542,-150.0,0.00016931,2]
[366129183,1750077078552,-1050.14,0.00016931,2]
[366129184,1750077078563,-150.0,0.00016931,2]
[366129185,1750077078581,-900.46,0.00016931,2]
[366129186,1750077078591,-150.0,0.00016931,2]
[366129187,1750077078601,-490.0,0.00016931,2]
[366129188,1750077078611,-150.0,0.00016931,2]
[366129189,1750077078621,-976.95,0.00016931,2]
[366129190,1750077078631,-151.0,0.00016931,2]
[366129191,1750077078641,-645.71,0.00016931,2]
[366129192,1750077078652,-490.0,0.00016931,2]
[366129193,1750077078662,-570.2,0.00016931,2]
[366129194,1750077078676,-511.75,0.00016931,2]
[366129195,1750077078686,-150.0,0.00016931,2]
[366129196,1750077078696,-490.0,0.00016931,2]
[366129197,1750077078707,-1048.43,0.00016931,2]
[366129198,1750077078718,-687.88,0.00016931,2]
[366129199,1750077078728,-500.38,0.00016931,2]
[366129200,1750077078738,-604.85,0.00016931,2]
[366129201,1750077078748,-1142.02,0.00016931,2]
[366129202,1750077078758,-1236.53,0.00016931,2]
[366129203,1750077078768,-490.0,0.00016931,2]
[366129204,1750077078778,-490.0,0.00016931,2]
[366129205,1750077078788,-490.0,0.00016931,2]
[366129206,1750077078798,-955.407299,0.00016931,2]
[366129207,1750077078809,-718.4,0.00016931,2]
[366129208,1750077078819,-1094.32,0.00016931,2]
[366129209,1750077078829,-490.0,0.00016931,2]
[366129210,1750077078839,-200.76193588,0.00016931,2]
[366129211,1750077078850,-955.407299,0.00016931,2]
[366129212,1750077078860,-1086.93,0.00016931,2]
[366129213,1750077078870,-198.639818,0.00016931,2]
[366129214,1750077078880,-198.639818,0.00016931,2]
[366129215,1750077078890,-1293.13,0.00016931,2]
[366129216,1750077078900,-490.0,0.00016931,2]
[366129217,1750077078911,-490.0,0.00016931,2]
[366129218,1750077078920,-198.639818,0.00016931,2]
[366129219,1750077078931,-198.639818,0.00016931,2]
[366129220,1750077078941,-518.68661,0.00016931,2]
[366129221,1750077078952,-1091.36,0.00016931,2]
[366129222,1750077078963,-490.0,0.00016931,2]
[366129223,1750077078974,-490.0,0.00016931,2]
[366129224,1750077078985,-797.31,0.00016931,2]
[366129225,1750077078995,-875.68,0.00016931,2]
[366129226,1750077079005,-498.54,0.00016931,2]
[366129227,1750077079015,-560.24,0.00016931,2]
[366129228,1750077079025,-518.68661,0.00016931,2]
[366129229,1750077079036,-598.74,0.00016931,2]
[366129230,1750077079046,-733.57,0.00016931,2]
[366129231,1750077079057,-913.42,0.00016931,2]
[366129232,1750077079068,-1111.79,0.00016931,2]
[366129233,1750077079079,-641.2,0.00016931,2]
[366129234,1750077079089,-527.1,0.00016931,2]
[366129235,1750077079100,-490.0,0.00016931,2]
[366129236,1750077079110,-151.0,0.00016931,2]
[366129237,1750077079121,-151.0,0.00016931,2]
[366129238,1750077079131,-490.0,0.00016931,2]
[366129239,1750077079142,-490.0,0.00016931,2]
[366129240,1750077079152,-490.0,0.00016931,2]
[366129241,1750077079162,-490.0,0.00016931,2]
[366129242,1750077079172,-151.0,0.00016931,2]
[366129243,1750077079183,-490.0,0.00016931,2]
[366129244,1750077079194,-490.0,0.00016931,2]
[366129245,1750077079204,-595.141465,0.00016931,2]
[366129246,1750077079215,-151.0,0.00016931,2]
[366129247,1750077079226,-968.63,0.00016931,2]
[366129248,1750077079237,-490.0,0.00016931,2]
[366129249,1750077079248,-660.66,0.00016931,2]
[366129250,1750077079258,-541.58,0.00016931,2]
[366129251,1750077079269,-595.141465,0.00016931,2]
[366129252,1750077079279,-151.0,0.00016931,2]
[366129253,1750077079291,-1676.3,0.00016931,2]
[366129254,1750077079302,-490.0,0.00016931,2]
[366129255,1750077079312,-579.92,0.00016931,2]
[366129256,1750077079322,-222.32006674,0.00016931,2]
[366129257,1750077079332,-151.0,0.00016931,2]
[366129258,1750077079343,-151.0,0.00016931,2]
[366129259,1750077079353,-151.0,0.00016931,2]
[366129260,1750077079363,-1089.55,0.00016931,2]
[366129261,1750077079373,-490.0,0.00016931,2]